fUSD/lending_fUSD_20250905
["ID","MTS","AMOUNT","RATE_DAILY","PERIOD"]
[383777962,1757111450815,-468.79,0.000917,120]
[383777963,1757111450826,-152.0,0.000918,120]
[383777964,1757111450836,-409.06,0.00091848,120]
[383777965,1757111450846,-400.0,0.00091917,120]
[383777966,1757111450855,-400.0,0.00091917,120]
[383777967,1757111450865,-400.0,0.00091917,120]
[383777968,1757111450874,-400.0,0.00091917,120]
[383777969,1757111450884,-2000.0,0.00092,120]
[383777970,1757111450894,-4645.94,0.00092,120]
[383777971,1757111450904,-409.06,0.00092122,120]
[383777972,1757111450914,-155.3,0.00092154,120]
[383777973,1757111450924,-200.0,0.0009216,120]
[383777974,1757111450934,-26028.88,0.0009216,120]
[383777975,1757111450943,-1500.0,0.0009216,30]
[383777976,1757111450954,-5000.0,0.0009216,120]
[383777977,1757111450963,-200.0,0.0009216,30]
[383777978,1757111450974,-400.0,0.00092191,120]
[383777979,1757111450984,-400.0,0.00092191,120]
[383777980,1757111450994,-235.96894045,0.00092191,120]
[383777981,1757111451005,-400.0,0.00092191,120]
[383777982,1757111451016,-214.0,0.0009238,120]
[383777983,1757111451026,-200.0,0.0009238,120]
[383777984,1757111451036,-409.29,0.00092396,120]
[383777985,1757111451047,-4000.0,0.0009244,53]
[383777986,1757111451058,-337.22448815,0.00092465,120]
[383777987,1757111451068,-400.0,0.00092465,120]
[383777988,1757111451078,-6000.0,0.0009263,51]
[383777989,1757111451087,-4000.0,0.0009269,59]
[383777990,1757111451099,-469.24510799,0.00092739,120]
[383777991,1757111451109,-153.0,0.000929,120]
[383777992,1757111451119,-2000.0,0.00093,120]
[383777993,1757111451129,-5108.94302303,0.00093,120]
[383777994,1757111451138,-8156.5915243,0.00093573,14]
[383777995,1757111451148,-2000.0,0.00094,120]
[383777996,1757111451157,-1183.25,0.00094058,120]
[383777997,1757111451167,-5000.0,0.0009406,120]
[383777998,1757111451176,-5000.0,0.00094068,120]
[383777999,1757111451186,-2188.20262392,0.00094079,120]
[383778000,1757111451196,-5000.0,0.00094106,120]
[383778001,1757111451207,-230.42,0.00094106,120]
[383778002,1757111451216,-5000.0,0.00094142,120]
[383778003,1757111451225,-5000.0,0.00094176,120]
[383778004,1757111451235,-2443.52,0.00094186,120]
[383778005,1757111451245,-5000.0,0.00094218,120]
[383778006,1757111451255,-822.48,0.00094218,120]
[383778007,1757111451265,-5000.0,0.00094273,120]
[383778008,1757111451274,-1846.43,0.00094289,120]
[383778009,1757111451284,-2096.01,0.00094291,120]
[383778010,1757111451294,-500.0,0.00094296,120]
[383778011,1757111451304,-907.41,0.000943,120]
[383778012,1757111451313,-25000.0,0.00094307,120]
[383778013,1757111451322,-2000.0,0.0009436,63]
[383778014,1757111451332,-5000.0,0.00094361,120]
[383778015,1757111451341,-25000.0,0.00094389,120]
[383778016,1757111451351,-5000.0,0.00094394,120]
[383778017,1757111451361,-17436.02,0.00094532,120]
[383778018,1757111451371,-2513.51,0.00094537,120]
[383778019,1757111451381,-4000.0,0.0009456,48]
[383778020,1757111451390,-5000.0,0.00094583,120]
[383778021,1757111451400,-5000.0,0.00094624,120]
[383778022,1757111451409,-25000.0,0.00094632,120]
[383778023,1757111451419,-5000.0,0.00094646,120]
[383778024,1757111451428,-5000.0,0.00094657,120]
[383778025,1757111451677,-2000.0,0.0009467,57]
[383778026,1757111451688,-2444.45,0.00094673,120]
[383778027,1757111451699,-325.6,0.00094673,120]
[383778028,1757111451709,-5000.0,0.00094729,120]
[383778029,1757111451718,-1969.13,0.00094731,120]
[383778030,1757111451728,-5000.0,0.00094748,120]
[383778031,1757111451738,-2099.98,0.00094759,120]
[383778032,1757111451748,-5000.0,0.00094806,120]
[383778033,1757111451758,-67438.98707064,0.0009489,120]
[383778034,1757111451768,-1200.0,0.000949,34]
[383778035,1757111451778,-2938.08,0.00094905,120]
[383778036,1757111451787,-5000.0,0.00094915,120]
[383778037,1757111451797,-2000.0,0.00095,120]
[383778038,1757111451807,-101419.10238075,0.00095,120]
[383778039,1757111451816,-9529.36,0.00095,30]
[383778040,1757111451826,-282993.76015781,0.0009505,120]
[383778041,1757111451835,-257.44735321,0.00095233,120]
[383778042,1757111451845,-152.0,0.000954,120]
[383778043,1757111451855,-200.0,0.00095616,120]
[383778044,1757111451864,-489.68476111,0.000958,120]
[383778045,1757111451874,-2000.0,0.00096,120]
[383778046,1757111451888,-214.0,0.0009614,120]
[383778047,1757111451898,-200.0,0.0009614,120]
[383778048,1757111451907,-35157.97707345,0.000964,30]
[383778049,1757111451917,-4000.0,0.0009685,52]
[383778050,1757111451927,-2000.0,0.0009693,42]
[383778051,1757111451937,-2000.0,0.00097,120]
[383778052,1757111451947,-218.31,0.00097,60]
[383778053,1757111451957,-2109.45420771,0.000975,110]
[383778054,1757111451967,-2000.0,0.00098,120]
[383778055,1757111451977,-9529.36,0.00098,30]
[383778056,1757111451987,-634.07571355,0.00098,120]
[383778057,1757111451997,-4006.64566051,0.00098,120]
[383778058,1757111452012,-2631.81,0.00098,60]
[383778059,1757111452022,-4000.0,0.0009844,51]
[383778060,1757111452032,-1500.0,0.0009864,51]
[383778061,1757111452042,-500.0,0.00098989,120]
[383778062,1757111452054,-2000.0,0.00099,120]
[383778063,1757111452065,-5078.01831423,0.00099,30]
[383778064,1757111452076,-166.0,0.00099,120]
[383778065,1757111452091,-158.0,0.00099,120]
[383778066,1757111452100,-540.70146653,0.00099,120]
[383778067,1757111452111,-200.0,0.00099072,120]
[383778068,1757111452120,-1401.56,0.000991,120]
[383778069,1757111452131,-746.0,0.000993,120]
[383778070,1757111452142,-746.0,0.000993,120]
[383778071,1757111452152,-746.0,0.000993,120]
[383778072,1757111452162,-746.0,0.000993,120]
[383778073,1757111452173,-746.0,0.000993,120]
[383778074,1757111452183,-746.0,0.000993,120]
[383778075,1757111452194,-746.0,0.000993,120]
[383778076,1757111452205,-746.0,0.000993,120]
[383778077,1757111452216,-746.0,0.000993,120]
[383778078,1757111452227,-746.0,0.000993,120]
[383778079,1757111452238,-746.0,0.000993,120]
[383778080,1757111452250,-746.0,0.000993,120]
[383778081,1757111452260,-746.0,0.000993,120]
[383778082,1757111452270,-746.0,0.000993,120]
[383778083,1757111452280,-746.0,0.000993,120]
[383778084,1757111452291,-746.0,0.000993,120]
[383778085,1757111452300,-746.0,0.000993,120]
[383778086,1757111452310,-746.0,0.000993,120]
[383778087,1757111452319,-746.0,0.000993,120]
[383778088,1757111452329,-746.0,0.000993,120]
[383778089,1757111452342,-746.0,0.000993,120]
[383778090,1757111452351,-746.0,0.000993,120]
[383778091,1757111452362,-746.0,0.000993,120]
[383778092,1757111452372,-757.49827259,0.000993,120]
[383778093,1757111452382,-2000.0,0.00099401,14]
[383778094,1757111452392,-591.3282963,0.00099565,30]
[383778095,1757111452402,-982.01347056,0.0009967,120]
[383778096,1757111452412,-109615.46021962,0.0009967,120]
[383778097,1757111452483,-9012.19137846,0.0009967,120]
[383778098,1757111452495,-373.48006391,0.0009967,120]
[383778099,1757111452562,-2613.46630286,0.00045204,2]
[383778100,1757111453031,-768.53369714,0.00045204,2]
[383778101,1757111453041,-198.371715,0.0004799,7]
[383778102,1757111453052,-991.60222416,0.00048204,2]
[383778103,1757111453065,-2388.39777584,0.00048204,2]
[383778104,1757111453074,-400.0,0.00084998,120]
[383778105,1757111453084,-400.0,0.00085272,120]
[383778106,1757111453094,-400.0,0.00085546,120]
[383778107,1757111453104,-400.0,0.0008582,120]
[383778108,1757111453114,-400.0,0.00086094,120]
[383778109,1757111453125,-105.13222416,0.0009967,120]
[383778110,1757111453141,-400.0,0.00085546,120]
[383778111,1757111453151,-3.18273301,0.0009967,120]
[383778112,1757111453163,-385460.76963202,0.0009967,120]
[383778113,1757111453353,-400.0,0.00035616,10]
[383778114,1757111453369,-400.0,0.00035616,10]
[383778115,1757111453378,-401.76402095,0.00035616,10]
[383778116,1757111453388,-400.0,0.0003589,10]
[383778117,1757111453398,-400.0,0.0003589,10]
[383778118,1757111453407,-400.0,0.00036164,10]
[383778119,1757111453418,-249.35505936,0.00036164,10]
[383778120,1757111453427,-400.0,0.00036438,10]
[383778121,1757111453437,-400.0,0.00036712,10]
[383778122,1757111453447,-400.0,0.00036986,10]
[383778123,1757111453457,-227.26016827,0.00037259,15]
[383778124,1757111453466,-400.0,0.0003726,10]
[383778125,1757111453476,-400.0,0.00037534,10]
[383778126,1757111453486,-400.0,0.00037808,10]
[383778127,1757111453496,-2563.24466678,0.00043171,15]
[383778128,1757111457011,-999.85450816,0.00043171,15]
[383778129,1757111457021,-1258.0,0.00045204,2]
[383778130,1757111457031,-1258.0,0.00048204,2]
[383778131,1757111457041,-449.04242172,0.00081,2]
[383778132,1757111457054,-400.0,0.00084998,120]
[383778133,1757111457063,-400.0,0.00085272,120]
[383778134,1757111457073,-400.0,0.00085546,120]
[383778135,1757111457083,-400.0,0.0008582,120]
[383778136,1757111457092,-400.0,0.0008582,120]
[383778137,1757111457102,-400.0,0.00086094,120]
[383778138,1757111457111,-409.48,0.00086094,120]
[383778139,1757111457122,-400.0,0.00086368,120]
[383778140,1757111457132,-400.0,0.00089999,120]
[383778141,1757111457142,-150.0,0.000993,120]
[383778142,1757111457152,-200.0,0.000993,120]
[383778143,1757111457161,-150.0,0.000993,120]
[383778144,1757111457171,-150.0,0.000993,120]
[383778145,1757111457181,-150.0,0.000993,120]
[383778146,1757111457190,-170879.21561289,0.0009967,120]
[383778147,1757111457206,-1661100.0,0.0009967,120]
[383778148,1757111523199,150.0,0.00024347,120]
[383778149,1757111524072,300.0,0.00024347,120]
[383778150,1757111526854,195.0,0.00024347,120]
[383778151,1757111527495,300.0,0.00024347,120]
[383778152,1757111645472,-300.0,0.00022132,2]
[383778153,1757111645502,-500.0,0.00022133,2]
[383778154,1757111691132,-500.0,0.00034129,7]
[383778155,1757111691159,-151.0,0.00034533,2]
[383778156,1757111691184,-151.0,0.00034751,2]
[383778157,1757111695668,-151.0,0.0003505,2]
[383778158,1757111695695,-151.0,0.00035136,2]
[383778159,1757111695721,-151.0,0.00035255,2]
[383778160,1757111695747,-1600.0,0.00035615,2]
[383778161,1757111695773,-200.0,0.00035615,30]
[383778162,1757111695805,-500.0,0.00035616,2]
[383778163,1757111695832,-500.0,0.00035616,2]
[383778164,1757111695859,-400.0,0.00035616,10]
[383778165,1757111695885,-400.0,0.00035616,10]
[383778166,1757111695914,-400.0,0.00035616,10]
[383778167,1757111695940,-400.0,0.00035616,10]
[383778168,1757111695967,-400.0,0.00035616,10]
[383778169,1757111695993,-437.77,0.00035616,10]
[383778170,1757111696020,-400.0,0.00035616,10]
[383778171,1757111696046,-400.0,0.00035616,10]
[383778172,1757111696078,-400.0,0.00035616,10]
[383778173,1757111696105,-279.25984096,0.00035616,10]
[383778174,1757111696132,-400.0,0.00035616,10]
[383778175,1757111696158,-400.0,0.00035616,10]
[383778176,1757111696186,-400.0,0.00035616,10]
[383778177,1757111696212,-400.0,0.00035616,10]
[383778178,1757111696241,-400.0,0.00035616,10]
[383778179,1757111696267,-400.0,0.00035616,10]
[383778180,1757111696293,-400.0,0.00035616,10]
[383778181,1757111696319,-400.0,0.00035616,10]
[383778182,1757111696344,-400.0,0.00035616,10]
[383778183,1757111696371,-400.0,0.00035616,10]
[383778184,1757111696397,-400.0,0.00035616,10]
[383778185,1757111696428,-400.0,0.00035616,10]
[383778186,1757111696457,-400.0,0.00035616,10]
[383778187,1757111696485,-400.0,0.00035616,10]
[383778188,1757111696512,-400.0,0.00035616,10]
[383778189,1757111696977,-400.0,0.00035616,10]
[383778190,1757111697007,-400.0,0.00035616,10]
[383778191,1757111697034,-400.0,0.00035616,10]
[383778192,1757111697060,-400.0,0.00035616,10]
[383778193,1757111697087,-400.0,0.00035616,10]
[383778194,1757111697113,-400.0,0.00035616,10]
[383778195,1757111697139,-400.0,0.00035616,10]
[383778196,1757111697167,-415.35,0.00035616,10]
[383778197,1757111697194,-400.0,0.00035616,10]
[383778198,1757111697222,-485.83,0.00035616,10]
[383778199,1757111697251,-265.27981669,0.00035889,15]
[383778200,1757111697277,-400.0,0.0003589,10]
[383778201,1757111697304,-400.0,0.0003589,10]
[383778202,1757111697329,-400.0,0.0003589,10]
[383778203,1757111697356,-400.0,0.0003589,10]
[383778204,1757111697383,-400.0,0.0003589,10]
[383778205,1757111697409,-400.0,0.0003589,10]
[383778206,1757111697435,-400.0,0.0003589,10]
[383778207,1757111697461,-400.0,0.0003589,10]
[383778208,1757111697486,-400.0,0.0003589,10]
[383778209,1757111697512,-400.0,0.0003589,10]
[383778210,1757111697538,-400.0,0.0003589,10]
[383778211,1757111697563,-400.0,0.0003589,10]
[383778212,1757111697590,-400.0,0.0003589,10]
[383778213,1757111697614,-400.0,0.0003589,10]
[383778214,1757111697638,-400.0,0.0003589,10]
[383778215,1757111697665,-400.0,0.0003589,10]
[383778216,1757111697690,-400.0,0.0003589,10]
[383778217,1757111697714,-400.0,0.0003589,10]
[383778218,1757111697740,-400.0,0.0003589,10]
[383778219,1757111697766,-400.0,0.0003589,10]
[383778220,1757111697792,-315.64,0.0003589,10]
[383778221,1757111697817,-400.0,0.0003589,10]
[383778222,1757111697844,-400.0,0.0003589,10]
[383778223,1757111697873,-400.0,0.0003589,10]
[383778224,1757111697899,-400.0,0.0003589,10]
[383778225,1757111697924,-284.9552227,0.0003589,10]
[383778226,1757111697948,-400.0,0.0003589,10]
[383778227,1757111697973,-400.0,0.0003589,10]
[383778228,1757111697998,-282.31135247,0.0003589,10]
[383778229,1757111698024,-400.0,0.0003589,10]
[383778230,1757111698048,-400.0,0.0003589,10]
[383778231,1757111698072,-485.83,0.0003589,10]
[383778232,1757111698097,-400.0,0.00036164,10]
[383778233,1757111698121,-400.0,0.00036164,10]
[383778234,1757111698145,-400.0,0.00036164,10]
[383778235,1757111698170,-400.0,0.00036164,10]
[383778236,1757111698194,-400.0,0.00036164,10]
[383778237,1757111698218,-400.0,0.00036164,10]
[383778238,1757111698246,-400.0,0.00036164,10]
[383778239,1757111698272,-400.0,0.00036164,10]
[383778240,1757111698297,-544.35,0.00036164,10]
[383778241,1757111698322,-400.0,0.00036164,10]
[383778242,1757111698346,-512.83776661,0.00036164,10]
[383778243,1757111698370,-400.0,0.00036164,10]
[383778244,1757111698396,-400.0,0.00036164,10]
[383778245,1757111698420,-400.0,0.00036164,10]
[383778246,1757111698445,-400.0,0.00036164,10]
[383778247,1757111698469,-400.0,0.00036164,10]
[383778248,1757111698494,-400.0,0.00036164,10]
[383778249,1757111698519,-516.6,0.00036164,10]
[383778250,1757111698544,-400.0,0.00036164,10]
[383778251,1757111698568,-400.0,0.00036164,10]
[383778252,1757111698594,-400.0,0.00036164,10]
[383778253,1757111698618,-400.0,0.00036164,10]
[383778254,1757111698643,-400.0,0.00036164,10]
[383778255,1757111698667,-400.0,0.00036164,10]
[383778256,1757111698692,-400.0,0.00036164,10]
[383778257,1757111698718,-400.0,0.00036164,10]
[383778258,1757111698744,-400.0,0.00036164,10]
[383778259,1757111698769,-400.0,0.00036164,10]
[383778260,1757111698795,-485.83,0.00036164,10]
[383778261,1757111698820,-500.0,0.00036437,2]
[383778262,1757111698845,-400.0,0.00036438,10]
[383778263,1757111698870,-400.0,0.00036438,10]
[383778264,1757111698896,-400.0,0.00036438,10]
[383778265,1757111698922,-400.0,0.00036438,10]
[383778266,1757111698947,-400.0,0.00036438,10]
[383778267,1757111698972,-400.0,0.00036438,10]
[383778268,1757111698996,-400.0,0.00036438,10]
[383778269,1757111699021,-400.0,0.00036438,10]
[383778270,1757111699047,-420.04266177,0.00036438,10]
[383778271,1757111699071,-400.0,0.00036438,10]
[383778272,1757111699096,-400.0,0.00036438,10]
[383778273,1757111699120,-400.0,0.00036438,10]
[383778274,1757111699145,-400.0,0.00036438,10]
[383778275,1757111699169,-400.0,0.00036438,10]
[383778276,1757111699193,-400.0,0.00036438,10]
[383778277,1757111699217,-400.0,0.00036438,10]
[383778278,1757111699242,-400.0,0.00036438,10]
[383778279,1757111699267,-400.0,0.00036438,10]
[383778280,1757111699398,-115.1133388,0.00036438,10]
[383778281,1757111713416,-400.0,0.00035616,10]
[383778282,1757111713445,-400.0,0.0003589,10]
[383778283,1757111713472,-151.0,0.0003608,2]
[383778284,1757111713498,-400.0,0.00036164,10]
[383778285,1757111713524,-400.0,0.00036437,3]
[383778286,1757111713552,-1600.0,0.00036437,3]
[383778287,1757111713579,-284.8866612,0.00036438,10]
[383778288,1757111713607,-400.0,0.00036438,10]
[383778289,1757111713634,-400.0,0.00036438,10]
[383778290,1757111713660,-400.0,0.00036438,10]
[383778291,1757111713687,-400.0,0.00036438,10]
[383778292,1757111713713,-400.0,0.00036438,10]
[383778293,1757111713740,-400.0,0.00036438,10]
[383778294,1757111713766,-485.83,0.00036438,10]
[383778295,1757111713793,-400.0,0.00036438,10]
[383778296,1757111713819,-400.0,0.00036712,10]
[383778297,1757111713849,-400.0,0.00036712,10]
[383778298,1757111713876,-400.0,0.00036712,10]
[383778299,1757111713904,-400.0,0.00036712,10]
[383778300,1757111713931,-400.0,0.00036712,10]
[383778301,1757111713957,-400.0,0.00036712,10]
[383778302,1757111713982,-500.59439947,0.00036712,10]
[383778303,1757111714010,-400.0,0.00036712,10]
[383778304,1757111714038,-400.0,0.00036712,10]
[383778305,1757111714065,-400.0,0.00036712,10]
[383778306,1757111714090,-400.0,0.00036712,10]
[383778307,1757111714115,-219.08354481,0.00036712,10]
[383778308,1757111714141,-400.0,0.00036712,10]
[383778309,1757111714166,-400.0,0.00036712,10]
[383778310,1757111714192,-400.0,0.00036712,10]
[383778311,1757111714217,-256.7238949,0.00036712,10]
[383778312,1757111714248,-400.0,0.00036712,10]
[383778313,1757111714274,-400.0,0.00036712,10]
[383778314,1757111714299,-400.0,0.00036712,10]
[383778315,1757111714324,-400.0,0.00036712,10]
[383778316,1757111714350,-400.0,0.00036712,10]
[383778317,1757111714376,-400.0,0.00036712,10]
[383778318,1757111714402,-400.0,0.00036712,10]
[383778319,1757111714427,-519.29531146,0.00036712,10]
[383778320,1757111714456,-485.83,0.00036712,10]
[383778321,1757111714482,-400.0,0.00036712,10]
[383778322,1757111714507,-400.0,0.00036986,10]
[383778323,1757111714532,-400.0,0.00036986,10]
[383778324,1757111714558,-400.0,0.00036986,10]
[383778325,1757111714586,-400.0,0.00036986,10]
[383778326,1757111714611,-400.0,0.00036986,10]
[383778327,1757111714639,-400.0,0.00036986,10]
[383778328,1757111714665,-400.0,0.00036986,10]
[383778329,1757111714691,-462.4,0.00036986,10]
[383778330,1757111714716,-400.0,0.00036986,10]
[383778331,1757111714742,-400.0,0.00036986,10]
[383778332,1757111714766,-400.0,0.00036986,10]
[383778333,1757111714819,-400.0,0.00036986,10]
[383778334,1757111714845,-400.0,0.00036986,10]
[383778335,1757111714872,-400.0,0.00036986,10]
[383778336,1757111714898,-400.0,0.00036986,10]
[383778337,1757111714925,-400.0,0.00036986,10]
[383778338,1757111714949,-400.0,0.00036986,10]
[383778339,1757111714975,-485.83,0.00036986,10]
[383778340,1757111715001,-400.0,0.00036986,10]
[383778341,1757111715026,-500.0,0.00037124,5]
[383778342,1757111715050,-500.0,0.00037124,5]
[383778343,1757111715075,-500.0,0.00037124,5]
[383778344,1757111715099,-462.19611265,0.00037124,5]
[383778345,1757111715124,-500.20349937,0.00037124,5]
[383778346,1757111715150,-500.0,0.00037124,5]
[383778347,1757111715177,-500.0,0.00037124,5]
[383778348,1757111715203,-15588.00349867,0.0003725,2]
[383778349,1757111715230,-400.0,0.0003726,10]
[383778350,1757111715259,-400.0,0.0003726,10]
[383778351,1757111715285,-400.0,0.0003726,10]
[383778352,1757111715313,-400.0,0.0003726,10]
[383778353,1757111715338,-400.0,0.0003726,10]
[383778354,1757111715363,-400.0,0.0003726,10]
[383778355,1757111715388,-400.0,0.0003726,10]
[383778356,1757111715414,-400.0,0.0003726,10]
[383778357,1757111715439,-400.0,0.0003726,10]
[383778358,1757111715464,-400.0,0.0003726,10]
[383778359,1757111715489,-539.0783109,0.0003726,10]
[383778360,1757111715515,-400.0,0.0003726,10]
[383778361,1757111715540,-400.0,0.0003726,10]
[383778362,1757111715565,-400.0,0.0003726,10]
[383778363,1757111715590,-159.04476657,0.0003726,10]
[383778364,1757111731730,-400.0,0.00035616,10]
[383778365,1757111731756,-400.0,0.0003589,10]
[383778366,1757111731782,-400.0,0.00036164,10]
[383778367,1757111731809,-151.64,0.00036233,2]
[383778368,1757111731834,-400.0,0.00036438,10]
[383778369,1757111731859,-491.87942138,0.00036712,10]
[383778370,1757111731886,-240.95523343,0.0003726,10]
[383778371,1757111731913,-400.0,0.0003726,10]
[383778372,1757111731941,-485.83,0.0003726,10]
[383778373,1757111731966,-293.95222221,0.0003726,10]
[383778374,1757111731992,-500.0,0.00037327,5]
[383778375,1757111732017,-500.0,0.00037327,2]
[383778376,1757111732042,-500.0,0.00037327,5]
[383778377,1757111732068,-500.0,0.00037327,5]
[383778378,1757111732094,-500.0,0.00037327,5]
[383778379,1757111732118,-500.0,0.00037327,5]
[383778380,1757111732143,-400.0,0.00037534,10]
[383778381,1757111732169,-400.0,0.00037534,10]
[383778382,1757111732199,-400.0,0.00037534,10]
[383778383,1757111732224,-400.0,0.00037534,10]
[383778384,1757111732251,-230.81,0.00037534,10]
[383778385,1757111732276,-184.73,0.00037534,10]
[383778386,1757111732302,-400.0,0.00037534,10]
[383778387,1757111732327,-400.0,0.00037534,10]
[383778388,1757111732352,-400.0,0.00037534,10]
[383778389,1757111732377,-400.0,0.00037534,10]
[383778390,1757111732401,-400.0,0.00037534,10]
[383778391,1757111732426,-400.0,0.00037534,10]
[383778392,1757111732452,-400.0,0.00037534,10]
[383778393,1757111732478,-400.0,0.00037534,10]
[383778394,1757111732503,-400.0,0.00037534,10]
[383778395,1757111732528,-485.83,0.00037534,10]
[383778396,1757111732555,-400.0,0.00037808,10]
[383778397,1757111732581,-400.0,0.00037808,10]
[383778398,1757111732609,-400.0,0.00037808,10]
[383778399,1757111732635,-400.0,0.00037808,10]
[383778400,1757111732660,-400.0,0.00037808,10]
[383778401,1757111732690,-400.0,0.00037808,10]
[383778402,1757111732718,-400.0,0.00037808,10]
[383778403,1757111732742,-483.49612788,0.00037808,10]
[383778404,1757111732767,-400.0,0.00037808,10]
[383778405,1757111732793,-400.0,0.00037808,10]
[383778406,1757111732819,-400.0,0.00037808,10]
[383778407,1757111732846,-503.92,0.00037808,10]
[383778408,1757111732871,-290.75,0.00037808,10]
[383778409,1757111732897,-485.83,0.00037808,10]
[383778410,1757111732923,-500.0,0.00037875,5]
[383778411,1757111732948,-400.0,0.00038082,10]
[383778412,1757111732977,-400.0,0.00038082,10]
[383778413,1757111733005,-400.0,0.00038082,10]
[383778414,1757111733030,-400.0,0.00038082,10]
[383778415,1757111733057,-400.0,0.00038082,10]
[383778416,1757111733085,-400.0,0.00038082,10]
[383778417,1757111733113,-390.88,0.00038082,10]
[383778418,1757111733139,-400.0,0.00038082,10]
[383778419,1757111733166,-400.0,0.00038082,10]
[383778420,1757111733192,-400.0,0.00038082,10]
[383778421,1757111733219,-400.0,0.00038082,10]
[383778422,1757111733247,-485.83,0.00038082,10]
[383778423,1757111733276,-487.32358966,0.00038285,5]
[383778424,1757111733424,-500.0,0.00038285,5]
[383778425,1757111733467,-500.0,0.00038285,5]
[383778426,1757111733497,-500.0,0.00038285,5]
[383778427,1757111733526,-162.6591226,0.00038285,2]
[383778428,1757111733556,-197.78659784,0.00038356,10]
[383778429,1757111733585,-400.0,0.00038356,10]
[383778430,1757111733613,-400.0,0.00038356,10]
[383778431,1757111733642,-400.0,0.00038356,10]
[383778432,1757111733670,-400.0,0.00038356,10]
[383778433,1757111733699,-400.0,0.00038356,10]
[383778434,1757111733727,-400.0,0.00038356,10]
[383778435,1757111733754,-400.0,0.00038356,10]
[383778436,1757111733782,-400.0,0.00038356,10]
[383778437,1757111733810,-400.0,0.00038356,10]
[383778438,1757111733838,-485.83,0.00038356,10]
[383778439,1757111733865,-400.0,0.0003863,10]
[383778440,1757111733892,-400.0,0.0003863,10]
[383778441,1757111733924,-400.0,0.0003863,10]
[383778442,1757111733953,-400.0,0.0003863,10]
[383778443,1757111733980,-400.0,0.0003863,10]
[383778444,1757111734007,-170.35635111,0.0003863,10]
[383778445,1757111734034,-400.0,0.0003863,10]
[383778446,1757111734062,-400.0,0.0003863,10]
[383778447,1757111734090,-400.0,0.0003863,10]
[383778448,1757111734117,-485.83,0.0003863,10]
[383778449,1757111734144,-500.0,0.00038833,5]
[383778450,1757111734171,-400.0,0.00038904,10]
[383778451,1757111734198,-400.0,0.00038904,10]
[383778452,1757111734226,-184.65055591,0.00038904,10]
[383778453,1757111734257,-400.0,0.00038904,10]
[383778454,1757111734285,-400.0,0.00038904,10]
[383778455,1757111734312,-452.88451035,0.00038904,10]
[383778456,1757111734340,-400.0,0.00038904,10]
[383778457,1757111734368,-400.0,0.00038904,10]
[383778458,1757111734399,-485.83,0.00038904,10]
[383778459,1757111734425,-359.61562762,0.00038976,2]
[383778460,1757111734453,-500.0,0.00038999,2]
[383778461,1757111734479,-500.0,0.00038999,2]